fUSD/lending_fUSD_20250708
["ID","MTS","AMOUNT","RATE_DAILY","PERIOD"]
[370311956,1751947847075,-461.57045696,0.000303,2]
[370311957,1751947847085,-219.04071644,0.0003031,2]
[370311958,1751947847094,-6262.34546106,0.00030331,2]
[370311959,1751947847104,-6247.73811349,0.0003034,2]
[370311960,1751947847113,-3131.17273053,0.0003035,2]
[370311961,1751947847123,-6694.63525259,0.0003036,2]
[370311962,1751947847132,-3131.17273053,0.00030373,2]
[370311963,1751947847144,-4144.18208538,0.00030383,22]
[370311964,1751947847154,-25049.3818442,0.00030389,2]
[370311965,1751947847164,-460.0,0.00030399,7]
[370311966,1751947847173,-460.0,0.00030399,7]
[370311967,1751947847182,-520.0,0.00030399,7]
[370311968,1751947847192,-158.55861996,0.00030399,7]
[370311969,1751947847201,-460.0,0.00030399,7]
[370311970,1751947847211,-460.0,0.00030399,7]
[370311971,1751947847221,-442.35753251,0.00030399,7]
[370311972,1751947847230,-492.02065737,0.00030399,7]
[370311973,1751947847239,-460.0,0.00030399,7]
[370311974,1751947847249,-460.0,0.00030399,7]
[370311975,1751947847258,-490.0,0.00030399,7]
[370311976,1751947847268,-490.0,0.00030399,7]
[370311977,1751947847277,-460.0,0.00030399,7]
[370311978,1751947847287,-460.0,0.00030399,7]
[370311979,1751947847296,-460.0,0.00030399,7]
[370311980,1751947847306,-460.0,0.00030399,7]
[370311981,1751947847316,-460.0,0.00030399,7]
[370311982,1751947847325,-460.0,0.00030399,7]
[370311983,1751947847335,-768.17,0.00030399,7]
[370311984,1751947847345,-528.92,0.00030399,7]
[370311985,1751947847355,-766.37,0.00030399,7]
[370311986,1751947847364,-460.0,0.00030399,7]
[370311987,1751947847374,-917.13,0.00030399,7]
[370311988,1751947847383,-460.0,0.00030399,7]
[370311989,1751947847392,-674.93,0.00030399,7]
[370311990,1751947847402,-1026.22,0.00030399,7]
[370311991,1751947847411,-460.0,0.00030399,7]
[370311992,1751947847421,-2606.7,0.00030399,7]
[370311993,1751947847431,-668.27,0.00030399,7]
[370311994,1751947847440,-460.0,0.00030399,7]
[370311995,1751947847449,-1535.43,0.00030399,7]
[370311996,1751947847459,-2160.69,0.00030399,7]
[370311997,1751947847468,-460.0,0.00030399,7]
[370311998,1751947847478,-1586.47,0.00030399,7]
[370311999,1751947847487,-460.0,0.00030399,7]
[370312000,1751947847497,-1764.78,0.00030399,7]
[370312001,1751947847506,-460.0,0.00030399,7]
[370312002,1751947847515,-643.86,0.00030399,7]
[370312003,1751947847525,-460.0,0.00030399,7]
[370312004,1751947847534,-460.0,0.00030399,7]
[370312005,1751947847543,-564.5102336,0.00030399,7]
[370312006,1751947847553,-764.94,0.00030399,7]
[370312007,1751947847562,-2278.62,0.00030399,7]
[370312008,1751947847572,-1451.67,0.00030399,7]
[370312009,1751947847581,-460.0,0.00030399,7]
[370312010,1751947847590,-514.0445591,0.00030399,7]
[370312011,1751947847600,-460.0,0.00030399,7]
[370312012,1751947847609,-460.0,0.00030399,7]
[370312013,1751947847619,-460.0,0.00030399,7]
[370312014,1751947847628,-460.0,0.00030399,7]
[370312015,1751947847638,-500.0,0.00030399,7]
[370312016,1751947847648,-831.54,0.00030399,7]
[370312017,1751947847658,-460.0,0.00030399,7]
[370312018,1751947847668,-842.72,0.00030399,7]
[370312019,1751947847678,-755.57,0.00030399,7]
[370312020,1751947847687,-941.56,0.00030399,7]
[370312021,1751947847697,-13081.33,0.00030399,7]
[370312022,1751947847706,-460.0,0.00030399,7]
[370312023,1751947847715,-1254.79,0.00030399,7]
[370312024,1751947847725,-2299.78,0.00030399,7]
[370312025,1751947847735,-146728.93249386,0.000304,2]
[370312026,1751947847744,-1000.0,0.000304,2]
[370312027,1751947847754,-865.77923542,0.00030404,2]
[370312028,1751947847763,-500.0,0.00030408,7]
[370312029,1751947847773,-500.0,0.00030409,7]
[370312030,1751947847783,-500.0,0.00030409,7]
[370312031,1751947847792,-500.0,0.00030409,7]
[370312032,1751947847801,-842.72,0.00030409,7]
[370312033,1751947847811,-151.0,0.0003041,7]
[370312034,1751947847821,-151.0,0.0003041,7]
[370312035,1751947847830,-150.0,0.0003041,7]
[370312036,1751947847840,-205.26325998,0.0003041,7]
[370312037,1751947847849,-150.0,0.0003041,7]
[370312038,1751947847859,-500.0,0.0003041,7]
[370312039,1751947847868,-153.40904045,0.0003041,7]
[370312040,1751947847877,-150.0,0.0003041,7]
[370312041,1751947847887,-150.0,0.0003041,7]
[370312042,1751947847896,-150.77766104,0.0003041,7]
[370312043,1751947847906,-150.0,0.0003041,7]
[370312044,1751947847915,-150.0,0.0003041,7]
[370312045,1751947847924,-460.0,0.0003041,7]
[370312046,1751947847934,-448.76,0.0003041,7]
[370312047,1751947847943,-462.32736732,0.0003041,7]
[370312048,1751947847953,-460.0,0.0003041,7]
[370312049,1751947847962,-460.0,0.0003041,7]
[370312050,1751947847972,-460.0,0.0003041,7]
[370312051,1751947847982,-460.0,0.0003041,7]
[370312052,1751947847991,-460.0,0.0003041,7]
[370312053,1751947848001,-460.0,0.0003041,7]
[370312054,1751947848010,-460.0,0.0003041,7]
[370312055,1751947848020,-460.0,0.0003041,7]
[370312056,1751947848030,-460.0,0.0003041,7]
[370312057,1751947848039,-460.0,0.0003041,7]
[370312058,1751947848048,-460.0,0.0003041,7]
[370312059,1751947848058,-460.0,0.0003041,7]
[370312060,1751947848067,-460.0,0.0003041,7]
[370312061,1751947848076,-460.0,0.0003041,7]
[370312062,1751947848086,-460.0,0.0003041,7]
[370312063,1751947848095,-460.0,0.0003041,7]
[370312064,1751947848105,-460.0,0.0003041,7]
[370312065,1751947848114,-460.0,0.0003041,7]
[370312066,1751947848124,-460.0,0.0003041,7]
[370312067,1751947848134,-460.0,0.0003041,7]
[370312068,1751947848151,-460.0,0.0003041,7]
[370312069,1751947848161,-598.17,0.0003041,7]
[370312070,1751947848171,-460.0,0.0003041,7]
[370312071,1751947848182,-460.0,0.0003041,7]
[370312072,1751947848193,-460.0,0.0003041,7]
[370312073,1751947848203,-460.0,0.0003041,7]
[370312074,1751947848215,-460.0,0.0003041,7]
[370312075,1751947848226,-460.0,0.0003041,7]
[370312076,1751947848236,-460.0,0.0003041,7]
[370312077,1751947848247,-460.0,0.0003041,7]
[370312078,1751947848257,-714.2,0.0003041,7]
[370312079,1751947848268,-184.09831646,0.0003041,7]
[370312080,1751947848278,-460.0,0.0003041,7]
[370312081,1751947848287,-574.76311104,0.0003041,7]
[370312082,1751947848296,-460.0,0.0003041,7]
[370312083,1751947848307,-544.16,0.0003041,7]
[370312084,1751947848316,-460.0,0.0003041,7]
[370312085,1751947848326,-460.0,0.0003041,7]
[370312086,1751947848336,-460.0,0.0003041,7]
[370312087,1751947848345,-460.0,0.0003041,7]
[370312088,1751947848355,-460.0,0.0003041,7]
[370312089,1751947848365,-460.0,0.0003041,7]
[370312090,1751947848375,-550.31,0.0003041,7]
[370312091,1751947848385,-678.26,0.0003041,7]
[370312092,1751947848394,-460.0,0.0003041,7]
[370312093,1751947848404,-460.0,0.0003041,7]
[370312094,1751947848414,-460.0,0.0003041,7]
[370312095,1751947848424,-460.0,0.0003041,7]
[370312096,1751947848433,-665.23,0.0003041,7]
[370312097,1751947848443,-460.0,0.0003041,7]
[370312098,1751947848452,-460.0,0.0003041,7]
[370312099,1751947848462,-152.88968369,0.0003041,7]
[370312100,1751947848472,-340.17350378,0.0003041,7]
[370312101,1751947848482,-599.84202838,0.0003041,7]
[370312102,1751947848492,-551.52791101,0.0003041,7]
[370312103,1751947848502,-594.39,0.0003041,7]
[370312104,1751947848511,-584.96,0.0003041,7]
[370312105,1751947848521,-460.0,0.0003041,7]
[370312106,1751947848531,-460.0,0.0003041,7]
[370312107,1751947848541,-460.0,0.0003041,7]
[370312108,1751947848551,-490.0,0.0003041,7]
[370312109,1751947848560,-460.0,0.0003041,7]
[370312110,1751947848570,-460.0,0.0003041,7]
[370312111,1751947848580,-460.0,0.0003041,7]
[370312112,1751947848590,-460.0,0.0003041,7]
[370312113,1751947848600,-357.58229152,0.0003041,7]
[370312114,1751947848609,-589.76,0.0003041,7]
[370312115,1751947848619,-460.0,0.0003041,7]
[370312116,1751947848629,-460.0,0.0003041,7]
[370312117,1751947848640,-653.29,0.0003041,7]
[370312118,1751947848650,-460.0,0.0003041,7]
[370312119,1751947848659,-375.18214053,0.0003041,7]
[370312120,1751947848669,-280.88358715,0.0003041,7]
[370312121,1751947848679,-511.47921053,0.0003041,7]
[370312122,1751947848689,-768.22,0.0003041,7]
[370312123,1751947848698,-460.0,0.0003041,7]
[370312124,1751947848708,-460.0,0.0003041,7]
[370312125,1751947848718,-460.0,0.0003041,7]
[370312126,1751947848727,-460.0,0.0003041,7]
[370312127,1751947848737,-460.0,0.0003041,7]
[370312128,1751947848747,-737.73,0.0003041,7]
[370312129,1751947848757,-460.0,0.0003041,7]
[370312130,1751947848766,-182.91,0.0003041,7]
[370312131,1751947848776,-460.0,0.0003041,7]
[370312132,1751947848786,-460.0,0.0003041,7]
[370312133,1751947848796,-476.65,0.0003041,7]
[370312134,1751947848806,-460.0,0.0003041,7]
[370312135,1751947848815,-460.0,0.0003041,7]
[370312136,1751947848824,-716.44,0.0003041,7]
[370312137,1751947848834,-460.0,0.0003041,7]
[370312138,1751947848843,-460.0,0.0003041,7]
[370312139,1751947848852,-513.02,0.0003041,7]
[370312140,1751947848862,-299.003619,0.0003041,7]
[370312141,1751947848871,-517.84,0.0003041,7]
[370312142,1751947848881,-264.97378,0.0003041,7]
[370312143,1751947848891,-367.757303,0.0003041,7]
[370312144,1751947848900,-620.86,0.0003041,7]
[370312145,1751947848910,-460.0,0.0003041,7]
[370312146,1751947848919,-497.04,0.0003041,7]
[370312147,1751947848929,-460.0,0.0003041,7]
[370312148,1751947848939,-258.04677261,0.0003041,7]
[370312149,1751947848948,-460.0,0.0003041,7]
[370312150,1751947848958,-814.5,0.0003041,7]
[370312151,1751947848968,-660.49,0.0003041,7]
[370312152,1751947848977,-460.0,0.0003041,7]
[370312153,1751947848987,-460.0,0.0003041,7]
[370312154,1751947848997,-499.39,0.0003041,7]
[370312155,1751947849007,-460.0,0.0003041,7]
[370312156,1751947849017,-587.67,0.0003041,7]
[370312157,1751947849028,-460.0,0.0003041,7]
[370312158,1751947849037,-460.0,0.0003041,7]
[370312159,1751947849047,-460.0,0.0003041,7]
[370312160,1751947849057,-594.22,0.0003041,7]
[370312161,1751947849066,-534.36,0.0003041,7]
[370312162,1751947849076,-460.0,0.0003041,7]
[370312163,1751947849085,-460.0,0.0003041,7]
[370312164,1751947849094,-460.0,0.0003041,7]
[370312165,1751947849104,-641.95,0.0003041,7]
[370312166,1751947849113,-460.0,0.0003041,7]
[370312167,1751947849123,-460.0,0.0003041,7]
[370312168,1751947849133,-1040.48,0.0003041,7]
[370312169,1751947849146,-205.83165356,0.0003041,7]
[370312170,1751947849156,-460.0,0.0003041,7]
[370312171,1751947849166,-460.0,0.0003041,7]
[370312172,1751947849175,-460.0,0.0003041,7]
[370312173,1751947849245,-819.36,0.0003041,7]
[370312174,1751947849255,-460.0,0.0003041,7]
[370312175,1751947849265,-460.0,0.0003041,7]
[370312176,1751947849274,-460.0,0.0003041,7]
[370312177,1751947849284,-460.0,0.0003041,7]
[370312178,1751947849293,-460.0,0.0003041,7]
[370312179,1751947849303,-460.0,0.0003041,7]
[370312180,1751947849312,-686.74,0.0003041,7]
[370312181,1751947849321,-460.0,0.0003041,7]
[370312182,1751947849331,-460.0,0.0003041,7]
[370312183,1751947849341,-460.0,0.0003041,7]
[370312184,1751947849350,-550.93,0.0003041,7]
[370312185,1751947849360,-460.0,0.0003041,7]
[370312186,1751947849369,-1625.32,0.0003041,7]
[370312187,1751947849378,-508.89444238,0.0003041,7]
[370312188,1751947849387,-545.64,0.0003041,7]
[370312189,1751947849397,-460.0,0.0003041,7]
[370312190,1751947849406,-490.0,0.0003041,7]
[370312191,1751947849415,-538.56,0.0003041,7]
[370312192,1751947849424,-460.0,0.0003041,7]
[370312193,1751947849435,-460.0,0.0003041,7]
[370312194,1751947849444,-633.47,0.0003041,7]
[370312195,1751947849454,-578.83335304,0.0003041,7]
[370312196,1751947849463,-460.0,0.0003041,7]
[370312197,1751947849472,-516.33,0.0003041,7]
[370312198,1751947849481,-460.0,0.0003041,7]
[370312199,1751947849490,-507.18,0.0003041,7]
[370312200,1751947849501,-505.78,0.0003041,7]
[370312201,1751947849510,-460.0,0.0003041,7]
[370312202,1751947849519,-555.28,0.0003041,7]
[370312203,1751947849528,-460.0,0.0003041,7]
[370312204,1751947849537,-177.55,0.0003041,7]
[370312205,1751947849546,-546.38,0.0003041,7]
[370312206,1751947849555,-460.0,0.0003041,7]
[370312207,1751947849565,-460.0,0.0003041,7]
[370312208,1751947849574,-460.0,0.0003041,7]
[370312209,1751947849583,-460.0,0.0003041,7]
[370312210,1751947849592,-460.0,0.0003041,7]
[370312211,1751947849601,-460.0,0.0003041,7]
[370312212,1751947849610,-460.0,0.0003041,7]
[370312213,1751947849619,-460.0,0.0003041,7]
[370312214,1751947849628,-278.47,0.0003041,7]
[370312215,1751947849637,-222.38,0.0003041,7]
[370312216,1751947849646,-460.0,0.0003041,7]
[370312217,1751947849655,-460.0,0.0003041,7]
[370312218,1751947849664,-469.99822163,0.0003041,7]
[370312219,1751947849674,-460.0,0.0003041,7]
[370312220,1751947849682,-460.0,0.0003041,7]
[370312221,1751947849692,-693.13,0.0003041,7]
[370312222,1751947849701,-460.0,0.0003041,7]
[370312223,1751947849710,-460.0,0.0003041,7]
[370312224,1751947849719,-663.67,0.0003041,7]
[370312225,1751947849728,-460.0,0.0003041,7]
[370312226,1751947849737,-396.07858855,0.0003041,7]
[370312227,1751947849746,-469.20622699,0.0003041,7]
[370312228,1751947849755,-460.0,0.0003041,7]
[370312229,1751947849764,-474.7,0.0003041,7]
[370312230,1751947849773,-640.76,0.0003041,7]
[370312231,1751947849782,-649.61,0.0003041,7]
[370312232,1751947849791,-460.0,0.0003041,7]
[370312233,1751947849800,-477.33,0.0003041,7]
[370312234,1751947849809,-460.0,0.0003041,7]
[370312235,1751947849818,-460.0,0.0003041,7]
[370312236,1751947849828,-536.6,0.0003041,7]
[370312237,1751947849837,-460.0,0.0003041,7]
[370312238,1751947849846,-496.36,0.0003041,7]
[370312239,1751947849855,-531.61,0.0003041,7]
[370312240,1751947849864,-460.0,0.0003041,7]
[370312241,1751947849874,-465.35344138,0.0003041,7]
[370312242,1751947849883,-460.0,0.0003041,7]
[370312243,1751947849892,-460.0,0.0003041,7]
[370312244,1751947849902,-226.2442428,0.0003041,7]
[370312245,1751947849911,-636.67,0.0003041,7]
[370312246,1751947849920,-460.0,0.0003041,7]
[370312247,1751947849929,-460.0,0.0003041,7]
[370312248,1751947849938,-500.0,0.0003041,7]
[370312249,1751947849948,-460.0,0.0003041,7]
[370312250,1751947849957,-460.0,0.0003041,7]
[370312251,1751947849966,-414.73,0.0003041,7]
[370312252,1751947849975,-150.0,0.0003041,7]
[370312253,1751947849984,-541.78659576,0.0003041,7]
[370312254,1751947849993,-472.74376503,0.0003041,7]
[370312255,1751947850002,-657.69,0.0003041,7]
[370312256,1751947850011,-460.0,0.0003041,7]
[370312257,1751947850020,-153.13577813,0.0003041,7]
[370312258,1751947850029,-635.12,0.0003041,7]
[370312259,1751947850038,-705.75,0.0003041,7]
[370312260,1751947850047,-500.0,0.0003041,7]
[370312261,1751947850056,-386.77878576,0.0003041,7]
[370312262,1751947850066,-150.0,0.0003041,7]
[370312263,1751947850075,-460.0,0.0003041,7]
[370312264,1751947850084,-500.0,0.0003041,7]
[370312265,1751947850094,-460.0,0.0003041,7]
[370312266,1751947850103,-150.0,0.0003041,7]
[370312267,1751947850113,-460.0,0.0003041,7]
[370312268,1751947850122,-150.3235112,0.0003041,7]
[370312269,1751947850132,-150.55667846,0.0003041,7]
[370312270,1751947850144,-500.0,0.0003041,7]
[370312271,1751947850154,-505.64,0.0003041,7]
[370312272,1751947850163,-500.0,0.0003041,7]
[370312273,1751947850172,-150.75401129,0.0003041,7]
[370312274,1751947850182,-460.0,0.0003041,7]
[370312275,1751947850192,-460.0,0.0003041,7]
[370312276,1751947850201,-150.0,0.0003041,7]
[370312277,1751947850210,-460.0,0.0003041,7]
[370312278,1751947850220,-460.0,0.0003041,7]
[370312279,1751947850230,-460.0,0.0003041,7]
[370312280,1751947850239,-522.31,0.0003041,7]
[370312281,1751947850248,-151.05413073,0.0003041,7]
[370312282,1751947850257,-460.0,0.0003041,7]
[370312283,1751947850266,-460.0,0.0003041,7]
[370312284,1751947850275,-460.0,0.0003041,7]
[370312285,1751947850284,-460.0,0.0003041,7]
[370312286,1751947850294,-460.0,0.0003041,7]
[370312287,1751947850304,-613.29,0.0003041,7]
[370312288,1751947850313,-460.0,0.0003041,7]
[370312289,1751947850323,-460.0,0.0003041,7]
[370312290,1751947850332,-460.0,0.0003041,7]
[370312291,1751947850342,-460.0,0.0003041,7]
[370312292,1751947850351,-564.16,0.0003041,7]
[370312293,1751947850360,-621.75,0.0003041,7]
[370312294,1751947850369,-646.24,0.0003041,7]
[370312295,1751947850379,-460.0,0.0003041,7]
[370312296,1751947850388,-460.0,0.0003041,7]
[370312297,1751947850397,-490.0,0.0003041,7]
[370312298,1751947850407,-460.0,0.0003041,7]
[370312299,1751947850416,-1237.8,0.0003041,7]
[370312300,1751947850425,-506.72117073,0.0003041,7]
[370312301,1751947850434,-460.0,0.0003041,7]
[370312302,1751947850443,-460.0,0.0003041,7]
[370312303,1751947850452,-460.0,0.0003041,7]
[370312304,1751947850501,-1215.64,0.0003041,7]
[370312305,1751947850511,-865.71,0.0003041,7]
[370312306,1751947850520,-460.0,0.0003041,7]
[370312307,1751947850529,-460.0,0.0003041,7]
[370312308,1751947850538,-460.0,0.0003041,7]
[370312309,1751947850548,-460.0,0.0003041,7]
[370312310,1751947850557,-460.0,0.0003041,7]
[370312311,1751947850566,-1179.69,0.0003041,7]
[370312312,1751947850575,-815.4,0.0003041,7]
[370312313,1751947850584,-780.51,0.0003041,7]
[370312314,1751947850594,-460.0,0.0003041,7]
[370312315,1751947850603,-460.0,0.0003041,7]
[370312316,1751947850612,-460.0,0.0003041,7]
[370312317,1751947850633,-197.75801075,0.0003041,7]
[370312318,1751947850642,-460.0,0.0003041,7]
[370312319,1751947850651,-460.0,0.0003041,7]
[370312320,1751947850660,-608.94,0.0003041,7]
[370312321,1751947850669,-460.0,0.0003041,7]
[370312322,1751947850678,-460.0,0.0003041,7]
[370312323,1751947850687,-748.45,0.0003041,7]
[370312324,1751947850697,-583.74,0.0003041,7]
[370312325,1751947850706,-586.43,0.0003041,7]
[370312326,1751947850715,-460.0,0.0003041,7]
[370312327,1751947850725,-674.92,0.0003041,7]
[370312328,1751947850734,-460.0,0.0003041,7]
[370312329,1751947850743,-460.0,0.0003041,7]
[370312330,1751947850753,-460.0,0.0003041,7]
[370312331,1751947850762,-460.0,0.0003041,7]
[370312332,1751947850771,-460.0,0.0003041,7]
[370312333,1751947850781,-682.3,0.0003041,7]
[370312334,1751947850790,-460.0,0.0003041,7]
[370312335,1751947850799,-520.0,0.0003041,7]
[370312336,1751947850809,-460.0,0.0003041,7]
[370312337,1751947850818,-949.79,0.0003041,7]
[370312338,1751947850828,-806.23,0.0003041,7]
[370312339,1751947850837,-548.76,0.0003041,7]
[370312340,1751947850846,-460.0,0.0003041,7]
[370312341,1751947850855,-1306.28,0.0003041,7]
[370312342,1751947850865,-2439.86,0.0003041,7]
[370312343,1751947850874,-552.41,0.0003041,7]
[370312344,1751947850884,-460.0,0.0003041,7]
[370312345,1751947850893,-515.78,0.0003041,7]
[370312346,1751947850902,-460.0,0.0003041,7]
[370312347,1751947850911,-460.0,0.0003041,7]
[370312348,1751947850921,-493.41,0.0003041,7]
[370312349,1751947850930,-300.0,0.0003041,2]
[370312350,1751947850939,-295.33767406,0.0003041,7]
[370312351,1751947850948,-460.0,0.0003041,7]
[370312352,1751947850957,-659.46,0.0003041,7]
[370312353,1751947850967,-460.0,0.0003041,7]
[370312354,1751947850976,-460.0,0.0003041,7]
[370312355,1751947850985,-1798.93,0.0003041,7]
[370312356,1751947850996,-466.58,0.0003041,7]
[370312357,1751947851006,-479.6,0.0003041,7]
[370312358,1751947851015,-460.0,0.0003041,7]
[370312359,1751947851024,-460.0,0.0003041,7]
[370312360,1751947851034,-460.0,0.0003041,7]
[370312361,1751947851043,-460.0,0.0003041,7]
[370312362,1751947851052,-301.44993448,0.0003041,7]
[370312363,1751947851063,-460.0,0.0003041,7]
[370312364,1751947851072,-660.07,0.0003041,7]
[370312365,1751947851082,-460.0,0.0003041,7]
[370312366,1751947851091,-460.0,0.0003041,7]
[370312367,1751947851102,-484.56,0.0003041,7]
[370312368,1751947851111,-460.0,0.0003041,7]
[370312369,1751947851120,-460.0,0.0003041,7]
[370312370,1751947851129,-460.0,0.0003041,7]
[370312371,1751947851140,-460.0,0.0003041,7]
[370312372,1751947851151,-1209.76,0.0003041,7]
[370312373,1751947851160,-577.35,0.0003041,7]
[370312374,1751947851169,-460.0,0.0003041,7]
[370312375,1751947851178,-567.42,0.0003041,7]
[370312376,1751947851188,-460.0,0.0003041,7]
[370312377,1751947851197,-460.0,0.0003041,7]
[370312378,1751947851207,-460.0,0.0003041,7]
[370312379,1751947851217,-460.0,0.0003041,7]
[370312380,1751947851227,-460.0,0.0003041,7]
[370312381,1751947851237,-776.56,0.0003041,7]
[370312382,1751947851247,-460.0,0.0003041,7]
[370312383,1751947851257,-460.0,0.0003041,7]
[370312384,1751947851268,-460.0,0.0003041,7]
[370312385,1751947851278,-500.0,0.0003041,7]
[370312386,1751947851287,-460.0,0.0003041,7]
[370312387,1751947851297,-460.0,0.0003041,7]
[370312388,1751947851308,-746.0,0.0003041,7]
[370312389,1751947851317,-605.12,0.0003041,7]
[370312390,1751947851327,-460.0,0.0003041,7]
[370312391,1751947851337,-548.49452772,0.0003041,7]
[370312392,1751947851346,-895.29,0.0003041,7]
[370312393,1751947851357,-460.0,0.0003041,7]
[370312394,1751947851366,-460.0,0.0003041,7]
[370312395,1751947851376,-827.18,0.0003041,7]
[370312396,1751947851386,-150.0,0.0003041,7]
[370312397,1751947851395,-460.0,0.0003041,7]
[370312398,1751947851405,-150.0,0.0003041,2]
[370312399,1751947851414,-150.0,0.0003041,7]
[370312400,1751947851424,-497.9740635,0.0003041,7]
[370312401,1751947851434,-491.75,0.0003041,7]
[370312402,1751947851444,-500.0,0.0003041,7]
[370312403,1751947851453,-460.0,0.0003041,7]
[370312404,1751947851462,-150.0,0.0003041,2]
[370312405,1751947851472,-460.0,0.0003041,7]
[370312406,1751947851481,-500.0,0.0003041,7]
[370312407,1751947851491,-150.0,0.0003041,2]
[370312408,1751947851501,-668.0,0.0003041,7]
[370312409,1751947851510,-765.54,0.0003041,7]
[370312410,1751947851519,-460.0,0.0003041,7]
[370312411,1751947851529,-460.0,0.0003041,7]
[370312412,1751947851538,-460.0,0.0003041,7]
[370312413,1751947851547,-839.62,0.0003041,7]
[370312414,1751947851558,-460.0,0.0003041,7]
[370312415,1751947851569,-703.36,0.0003041,7]
[370312416,1751947851580,-563.45,0.0003041,7]
[370312417,1751947851590,-460.0,0.0003041,7]
[370312418,1751947851600,-1295.09,0.0003041,7]
[370312419,1751947851611,-1700.66,0.0003041,7]
[370312420,1751947851621,-526.38,0.0003041,7]
[370312421,1751947851630,-460.0,0.0003041,7]
[370312422,1751947851640,-460.0,0.0003041,7]
[370312423,1751947851650,-460.0,0.0003041,7]
[370312424,1751947851659,-460.0,0.0003041,7]
[370312425,1751947851669,-383.95656943,0.0003041,7]
[370312426,1751947851679,-460.0,0.0003041,7]
[370312427,1751947851690,-523.06,0.0003041,7]
[370312428,1751947851701,-686.33,0.0003041,7]
[370312429,1751947851712,-595.16,0.0003041,7]
[370312430,1751947851722,-6417.17,0.0003041,7]
[370312431,1751947851732,-460.0,0.0003041,7]
[370312432,1751947851742,-730.05,0.0003041,7]
[370312433,1751947851751,-460.0,0.0003041,7]
[370312434,1751947851762,-3008.28,0.0003041,7]
[370312435,1751947851772,-1543.68,0.0003041,7]
[370312436,1751947851782,-500.0,0.0003041,2]
[370312437,1751947851791,-613.1,0.0003041,7]
[370312438,1751947851801,-460.0,0.0003041,7]
[370312439,1751947851810,-460.0,0.0003041,7]
[370312440,1751947851820,-965.0,0.0003041,7]
[370312441,1751947851830,-460.0,0.0003041,7]
[370312442,1751947851840,-580.93,0.0003041,7]
[370312443,1751947851851,-626.5,0.0003041,7]
[370312444,1751947851861,-460.0,0.0003041,7]
[370312445,1751947851871,-1322.22,0.0003041,7]
[370312446,1751947851881,-150.0,0.0003041,7]
[370312447,1751947851892,-759.95,0.0003041,7]
[370312448,1751947851903,-500.0,0.0003041,2]
[370312449,1751947851913,-500.0,0.0003041,60]
[370312450,1751947851925,-1375.09,0.0003041,7]
[370312451,1751947851935,-460.0,0.0003041,7]
[370312452,1751947851945,-460.0,0.0003041,7]
[370312453,1751947851956,-460.0,0.0003041,7]
[370312454,1751947851965,-550.67,0.0003041,7]
[370312455,1751947851975,-460.0,0.0003041,7]